[Event "*** Titled Tuesday Blitz"]
[Site "Chess.com"]
[Date "2020.05.05"]
[Round "3"]
[White "kinga2008"]
[Black "amiralfio"]
[Result "0-1"]
[WhiteElo "2108"]
[BlackElo "2473"]
[TimeControl "180+1"]
[EndTime "10:27:07 PDT"]
[Termination "amiralfio won by resignation"]

1. e4 {[%clk 0:03:00.9]} 1... e6 {[%clk 0:02:58.1]} 2. d4 {[%clk 0:03:00.1]}
2... d5 {[%clk 0:02:57]} 3. e5 {[%clk 0:02:59]} 3... c5 {[%clk 0:02:57]} 4. c3
{[%clk 0:02:55.8]} 4... Nc6 {[%clk 0:02:56.9]} 5. Nf3 {[%clk 0:02:53.7]} 5...
Bd7 {[%clk 0:02:52.4]} 6. a3 {[%clk 0:02:53.8]} 6... f6 {[%clk 0:02:52.2]} 7. b4
{[%clk 0:02:52.5]} 7... fxe5 {[%clk 0:02:49]} 8. Nxe5 {[%clk 0:02:50]} 8... Nxe5
{[%clk 0:02:49]} 9. dxe5 {[%clk 0:02:50.9]} 9... Ne7 {[%clk 0:02:47.2]} 10. Bd3
{[%clk 0:02:48.3]} 10... g6 {[%clk 0:02:16.6]} 11. h4 {[%clk 0:02:45.7]} 11...
Nf5 {[%clk 0:02:15.6]} 12. h5 {[%clk 0:02:44.8]} 12... Bg7 {[%clk 0:02:11.3]}
13. hxg6 {[%clk 0:02:44.8]} 13... hxg6 {[%clk 0:02:11.3]} 14. Rxh8+ {[%clk
0:02:44.9]} 14... Bxh8 {[%clk 0:02:12.2]} 15. Qg4 {[%clk 0:02:45]} 15... Kf7
{[%clk 0:02:10.7]} 16. Bxf5 {[%clk 0:02:36.9]} 16... exf5 {[%clk 0:02:09.1]} 17.
Qf3 {[%clk 0:02:34.6]} 17... Be6 {[%clk 0:02:07.7]} 18. Bf4 {[%clk 0:02:33]}
18... Qc7 {[%clk 0:01:55.8]} 19. Qh3 {[%clk 0:02:29]} 19... Bg7 {[%clk
0:01:51.4]} 20. Nd2 {[%clk 0:02:23.3]} 20... Rh8 {[%clk 0:01:49.5]} 21. Qg3
{[%clk 0:02:18.1]} 21... Rh1+ {[%clk 0:01:32.6]} 22. Nf1 {[%clk 0:02:16.8]}
22... cxb4 {[%clk 0:01:32.9]} 23. axb4 {[%clk 0:02:14.2]} 23... Qc4 {[%clk
0:01:31.5]} 24. Kd2 {[%clk 0:01:44.8]} 24... Rxf1 {[%clk 0:01:27.7]} 25. Rxf1
{[%clk 0:01:41.9]} 25... Qxf1 {[%clk 0:01:28.6]} 26. Qg5 {[%clk 0:01:30.7]}
26... Qxf2+ {[%clk 0:01:26.7]} 27. Kd1 {[%clk 0:01:26.8]} 27... d4 {[%clk
0:01:22]} 28. Bd2 {[%clk 0:01:19.5]} 28... dxc3 {[%clk 0:01:15.6]} 29. Bxc3
{[%clk 0:01:14.7]} 29... Bb3+ {[%clk 0:01:14.6]} 0-1

[Event "*** Titled Tuesday Blitz"]
[Site "Chess.com"]
[Date "2020.05.05"]
[Round "3"]
[White "hedgehog280"]
[Black "eightbyeightchess"]
[Result "1-0"]
[WhiteElo "2646"]
[BlackElo "2408"]
[TimeControl "180+1"]
[EndTime "10:27:08 PDT"]
[Termination "hedgehog280 won by resignation"]

1. c4 {[%clk 0:03:00.9]} 1... e5 {[%clk 0:02:58.7]} 2. Nc3 {[%clk 0:02:59.8]}
2... Nf6 {[%clk 0:02:58.2]} 3. Nf3 {[%clk 0:03:00.2]} 3... Nc6 {[%clk
0:02:58.2]} 4. a3 {[%clk 0:03:00.7]} 4... a5 {[%clk 0:02:53]} 5. e4 {[%clk
0:02:58.4]} 5... Bc5 {[%clk 0:02:52.8]} 6. Nxe5 {[%clk 0:02:58.1]} 6... Nxe5
{[%clk 0:02:33.9]} 7. d4 {[%clk 0:02:57.8]} 7... d6 {[%clk 0:02:30.6]} 8. dxc5
{[%clk 0:02:53.6]} 8... dxc5 {[%clk 0:02:29.5]} 9. Qxd8+ {[%clk 0:02:50.5]} 9...
Kxd8 {[%clk 0:02:30.4]} 10. Bg5 {[%clk 0:02:50.5]} 10... h6 {[%clk 0:02:27.1]}
11. O-O-O+ {[%clk 0:02:48.3]} 11... Bd7 {[%clk 0:02:18.1]} 12. Bxf6+ {[%clk
0:02:45.4]} 12... gxf6 {[%clk 0:02:19]} 13. Nd5 {[%clk 0:02:46.1]} 13... Ra6
{[%clk 0:02:18.5]} 14. f4 {[%clk 0:02:44.6]} 14... Ng4 {[%clk 0:02:16.9]} 15.
Rd2 {[%clk 0:02:43.4]} 15... c6 {[%clk 0:02:09.6]} 16. Nc3 {[%clk 0:02:33.2]}
16... Kc7 {[%clk 0:01:42.9]} 17. h3 {[%clk 0:02:21.7]} 17... Ne3 {[%clk
0:01:42.2]} 18. Bd3 {[%clk 0:02:22.1]} 18... Rg8 {[%clk 0:01:37.9]} 19. g4
{[%clk 0:02:18.5]} 19... b5 {[%clk 0:01:23.6]} 20. cxb5 {[%clk 0:02:12.3]} 20...
cxb5 {[%clk 0:01:23.8]} 21. Nxb5+ {[%clk 0:02:06]} 21... Bxb5 {[%clk 0:01:17.6]}
22. Bxb5 {[%clk 0:02:06]} 22... Rb6 {[%clk 0:01:16.2]} 23. a4 {[%clk 0:02:03.8]}
23... Re6 {[%clk 0:01:08]} 24. Re1 {[%clk 0:01:51]} 24... Rxe4 {[%clk
0:01:02.4]} 25. Rd3 {[%clk 0:01:50.9]} 25... Rxf4 {[%clk 0:00:50.7]} 26. Rexe3
{[%clk 0:01:48.2]} 26... h5 {[%clk 0:00:51.2]} 27. Re7+ {[%clk 0:01:46.7]} 27...
Kb8 {[%clk 0:00:50.4]} 28. Rdd7 {[%clk 0:01:45.2]} 28... hxg4 {[%clk 0:00:46.4]}
29. Rb7+ {[%clk 0:01:45.4]} 29... Ka8 {[%clk 0:00:46.2]} 30. Bc6 {[%clk
0:01:40.3]} 1-0

[Event "*** Titled Tuesday Blitz"]
[Site "Chess.com"]
[Date "2020.05.05"]
[Round "3"]
[White "MrTattaglia"]
[Black "chessdjw"]
[Result "1-0"]
[WhiteElo "2959"]
[BlackElo "2653"]
[TimeControl "180+1"]
[EndTime "10:27:14 PDT"]
[Termination "MrTattaglia won by resignation"]

1. Nf3 {[%clk 0:03:00.9]} 1... g6 {[%clk 0:02:58.3]} 2. c4 {[%clk 0:02:59.5]}
2... Bg7 {[%clk 0:02:58.5]} 3. Nc3 {[%clk 0:02:59.9]} 3... c5 {[%clk 0:02:57.6]}
4. g3 {[%clk 0:02:59.8]} 4... Nc6 {[%clk 0:02:57.9]} 5. Bg2 {[%clk 0:03:00.3]}
5... d6 {[%clk 0:02:58.5]} 6. O-O {[%clk 0:02:59.2]} 6... Be6 {[%clk 0:02:58]}
7. d3 {[%clk 0:02:54.8]} 7... Qc8 {[%clk 0:02:57.6]} 8. Nd5 {[%clk 0:02:50.3]}
8... Nf6 {[%clk 0:02:55.1]} 9. Nf4 {[%clk 0:02:48.1]} 9... Bd7 {[%clk
0:02:53.8]} 10. Rb1 {[%clk 0:02:48.2]} 10... e5 {[%clk 0:02:53.7]} 11. Nd5
{[%clk 0:02:46.1]} 11... Nxd5 {[%clk 0:02:54.3]} 12. cxd5 {[%clk 0:02:47]} 12...
Nb4 {[%clk 0:02:49.6]} 13. a3 {[%clk 0:02:40.3]} 13... Nxd5 {[%clk 0:02:48.4]}
14. Nxe5 {[%clk 0:02:40.6]} 14... dxe5 {[%clk 0:02:43]} 15. Bxd5 {[%clk
0:02:40.3]} 15... O-O {[%clk 0:02:34.8]} 16. Be3 {[%clk 0:02:40]} 16... Be6
{[%clk 0:02:15.4]} 17. Bxe6 {[%clk 0:02:39]} 17... Qxe6 {[%clk 0:02:13.4]} 18.
Bxc5 {[%clk 0:02:38.9]} 18... Rfd8 {[%clk 0:02:13.8]} 19. Qa4 {[%clk 0:02:36.3]}
19... a6 {[%clk 0:02:06.5]} 20. Be3 {[%clk 0:02:35.5]} 20... Rac8 {[%clk
0:02:01.9]} 21. Rfc1 {[%clk 0:02:33.2]} 21... h6 {[%clk 0:01:58.5]} 22. Qb4
{[%clk 0:02:29.4]} 22... b5 {[%clk 0:01:53.6]} 23. Qe4 {[%clk 0:02:27.8]} 23...
Qb3 {[%clk 0:01:41.7]} 24. Qb4 {[%clk 0:01:41.8]} 24... Qa2 {[%clk 0:01:37]} 25.
Ra1 {[%clk 0:01:38.3]} 25... Qd5 {[%clk 0:01:34.9]} 26. Rc3 {[%clk 0:01:32.4]}
26... Bf8 {[%clk 0:01:21.1]} 27. Qa5 {[%clk 0:01:27.9]} 27... Rxc3 {[%clk
0:01:05.4]} 28. bxc3 {[%clk 0:01:28.8]} 28... Qc6 {[%clk 0:01:02]} 29. Qxd8
{[%clk 0:01:25.9]} 1-0

[Event "*** Titled Tuesday Blitz"]
[Site "Chess.com"]
[Date "2020.05.05"]
[Round "3"]
[White "Raja3401"]
[Black "zala02"]
[Result "1-0"]
[WhiteElo "2702"]
[BlackElo "2234"]
[TimeControl "180+1"]
[EndTime "10:27:17 PDT"]
[Termination "Raja3401 won by resignation"]

1. e4 {[%clk 0:03:00.9]} 1... c5 {[%clk 0:02:58.6]} 2. Nf3 {[%clk 0:02:57.5]}
2... Nc6 {[%clk 0:02:57.5]} 3. Bb5 {[%clk 0:02:56.3]} 3... g6 {[%clk 0:02:52.7]}
4. Bxc6 {[%clk 0:02:53.2]} 4... dxc6 {[%clk 0:02:45.5]} 5. d3 {[%clk 0:02:50.9]}
5... Bg7 {[%clk 0:02:40.6]} 6. O-O {[%clk 0:02:44.4]} 6... e5 {[%clk 0:02:29.8]}
7. a3 {[%clk 0:02:43.1]} 7... Ne7 {[%clk 0:02:25.8]} 8. b4 {[%clk 0:02:41.5]}
8... cxb4 {[%clk 0:02:13.6]} 9. axb4 {[%clk 0:02:41.2]} 9... O-O {[%clk
0:02:13.1]} 10. Bb2 {[%clk 0:02:35.4]} 10... Qc7 {[%clk 0:02:07.5]} 11. Nbd2
{[%clk 0:02:34.6]} 11... Be6 {[%clk 0:01:56.5]} 12. Ra5 {[%clk 0:02:31]} 12...
f6 {[%clk 0:01:48.8]} 13. Qa1 {[%clk 0:02:30.5]} 13... b6 {[%clk 0:01:42.5]} 14.
Ra6 {[%clk 0:02:25.2]} 14... c5 {[%clk 0:01:26.9]} 15. bxc5 {[%clk 0:02:23.6]}
15... Qxc5 {[%clk 0:01:24.5]} 16. Rc1 {[%clk 0:02:08.3]} 16... Qc7 {[%clk
0:00:57.2]} 17. d4 {[%clk 0:02:00.6]} 17... exd4 {[%clk 0:00:48.7]} 18. Bxd4
{[%clk 0:02:01.5]} 18... Nc6 {[%clk 0:00:44.1]} 19. Bxb6 {[%clk 0:01:59.5]}
19... Qb7 {[%clk 0:00:38.1]} 20. Be3 {[%clk 0:01:51.9]} 20... Rfc8 {[%clk
0:00:27.4]} 21. Qa4 {[%clk 0:01:47.4]} 21... Nb4 {[%clk 0:00:17.4]} 22. Rxe6
{[%clk 0:01:45.7]} 1-0

[Event "*** Titled Tuesday Blitz"]
[Site "Chess.com"]
[Date "2020.05.05"]
[Round "3"]
[White "BasilSmash"]
[Black "Lunow"]
[Result "1/2-1/2"]
[WhiteElo "2426"]
[BlackElo "2209"]
[TimeControl "180+1"]
[EndTime "10:27:18 PDT"]
[Termination "Game drawn by repetition"]

1. d4 {[%clk 0:02:57.9]} 1... Nf6 {[%clk 0:02:58.9]} 2. Nf3 {[%clk 0:02:57.6]}
2... g6 {[%clk 0:02:58.1]} 3. g3 {[%clk 0:02:57.6]} 3... Bg7 {[%clk 0:02:57.9]}
4. Bg2 {[%clk 0:02:57.6]} 4... O-O {[%clk 0:02:57.2]} 5. O-O {[%clk 0:02:57.5]}
5... d5 {[%clk 0:02:56.9]} 6. c4 {[%clk 0:02:57.2]} 6... dxc4 {[%clk 0:02:57]}
7. Na3 {[%clk 0:02:56.3]} 7... c5 {[%clk 0:02:56.8]} 8. dxc5 {[%clk 0:02:54.5]}
8... c3 {[%clk 0:02:53.1]} 9. Nb5 {[%clk 0:02:53.1]} 9... Na6 {[%clk 0:02:52.6]}
10. Nxc3 {[%clk 0:02:50.8]} 10... Nxc5 {[%clk 0:02:52.2]} 11. Be3 {[%clk
0:02:50.8]} 11... Nfe4 {[%clk 0:02:50.7]} 12. Bd4 {[%clk 0:02:48.8]} 12... Bxd4
{[%clk 0:02:44.3]} 13. Qxd4 {[%clk 0:02:44.7]} 13... Qxd4 {[%clk 0:02:38.2]} 14.
Nxd4 {[%clk 0:02:45.6]} 14... Nxc3 {[%clk 0:02:36.6]} 15. bxc3 {[%clk
0:02:41.8]} 15... Bd7 {[%clk 0:02:35.6]} 16. Nb3 {[%clk 0:02:38.3]} 16... Rac8
{[%clk 0:02:23.9]} 17. Rfd1 {[%clk 0:02:33.3]} 17... Be6 {[%clk 0:02:14.9]} 18.
Nxc5 {[%clk 0:02:24.3]} 18... Rxc5 {[%clk 0:02:15.8]} 19. Bxb7 {[%clk
0:02:23.6]} 19... Rxc3 {[%clk 0:02:15.3]} 20. Bd5 {[%clk 0:02:21.8]} 20... Bxd5
{[%clk 0:02:10.8]} 21. Rxd5 {[%clk 0:02:22.7]} 21... Rc2 {[%clk 0:02:03.8]} 22.
e3 {[%clk 0:02:20.3]} 22... Rb8 {[%clk 0:02:00.2]} 23. Rd7 {[%clk 0:02:14.4]}
23... Rbb2 {[%clk 0:01:59.9]} 24. Rf1 {[%clk 0:02:12.3]} 24... Rxa2 {[%clk
0:01:57.9]} 25. Rxe7 {[%clk 0:02:11.7]} 25... a5 {[%clk 0:01:50.4]} 26. Ra7
{[%clk 0:02:10.7]} 26... a4 {[%clk 0:01:49.7]} 27. Kg2 {[%clk 0:02:09.9]} 27...
a3 {[%clk 0:01:48.1]} 28. Kf3 {[%clk 0:02:09.8]} 28... Kg7 {[%clk 0:01:43]} 29.
g4 {[%clk 0:02:09.1]} 29... g5 {[%clk 0:01:30.2]} 30. h3 {[%clk 0:02:06.6]}
30... h6 {[%clk 0:01:28.2]} 31. Kg3 {[%clk 0:01:54.5]} 31... Kg6 {[%clk
0:01:27.9]} 32. Ra6+ {[%clk 0:01:52.8]} 32... Kg7 {[%clk 0:01:27.6]} 33. Ra7
{[%clk 0:01:42.9]} 33... Kg6 {[%clk 0:01:26.8]} 34. Ra6+ {[%clk 0:01:28.9]}
34... Kg7 {[%clk 0:01:26.1]} 35. Ra7 {[%clk 0:01:21.2]} 1/2-1/2

[Event "*** Titled Tuesday Blitz"]
[Site "Chess.com"]
[Date "2020.05.05"]
[Round "3"]
[White "StegariuVlad"]
[Black "manuellarrea"]
[Result "1-0"]
[WhiteElo "2509"]
[BlackElo "2213"]
[TimeControl "180+1"]
[EndTime "10:27:28 PDT"]
[Termination "StegariuVlad won by resignation"]

1. e4 {[%clk 0:03:00.9]} 1... c5 {[%clk 0:02:58.3]} 2. Nf3 {[%clk 0:02:59.9]}
2... Nc6 {[%clk 0:02:58.4]} 3. d4 {[%clk 0:02:57.9]} 3... cxd4 {[%clk 0:02:58]}
4. Nxd4 {[%clk 0:02:58.8]} 4... Nf6 {[%clk 0:02:57.5]} 5. Nc3 {[%clk 0:02:58]}
5... e5 {[%clk 0:02:57.1]} 6. Ndb5 {[%clk 0:02:58.4]} 6... d6 {[%clk 0:02:57.3]}
7. Bg5 {[%clk 0:02:55.5]} 7... a6 {[%clk 0:02:56.7]} 8. Na3 {[%clk 0:02:55.2]}
8... b5 {[%clk 0:02:56.8]} 9. Nd5 {[%clk 0:02:55.1]} 9... Be7 {[%clk 0:02:55.6]}
10. Bxf6 {[%clk 0:02:55.3]} 10... Bxf6 {[%clk 0:02:55.5]} 11. c3 {[%clk
0:02:53]} 11... Bg5 {[%clk 0:02:51.9]} 12. h4 {[%clk 0:02:48.5]} 12... Bh6
{[%clk 0:02:49.7]} 13. Be2 {[%clk 0:02:45.4]} 13... O-O {[%clk 0:02:48.4]} 14.
Bg4 {[%clk 0:02:43.7]} 14... Be6 {[%clk 0:02:46.6]} 15. Nc2 {[%clk 0:02:41.8]}
15... Ne7 {[%clk 0:02:41.6]} 16. Nce3 {[%clk 0:02:10.8]} 16... Bxe3 {[%clk
0:02:33.8]} 17. Nxe3 {[%clk 0:02:10]} 17... Bxg4 {[%clk 0:02:22.3]} 18. Qxg4
{[%clk 0:02:09.4]} 18... Qc8 {[%clk 0:02:14.5]} 19. Qxc8 {[%clk 0:02:05]} 19...
Rfxc8 {[%clk 0:02:09.8]} 20. Ke2 {[%clk 0:02:05.1]} 20... Rc6 {[%clk 0:02:05.5]}
21. Rhd1 {[%clk 0:02:04.8]} 21... Ng6 {[%clk 0:02:04.6]} 22. g3 {[%clk
0:02:04.4]} 22... Ne7 {[%clk 0:01:57]} 23. a4 {[%clk 0:02:00]} 23... Rb8 {[%clk
0:01:38.6]} 24. axb5 {[%clk 0:01:56.2]} 24... Rxb5 {[%clk 0:01:30.9]} 25. Rd2
{[%clk 0:01:52]} 25... g6 {[%clk 0:01:27.6]} 26. Kd1 {[%clk 0:01:47.3]} 26... f5
{[%clk 0:01:25.7]} 27. exf5 {[%clk 0:01:45]} 27... gxf5 {[%clk 0:01:24.2]} 28.
f4 {[%clk 0:01:44.8]} 28... Kf7 {[%clk 0:01:17.4]} 29. Kc2 {[%clk 0:01:43.8]}
29... Ke6 {[%clk 0:01:15.3]} 30. Rad1 {[%clk 0:01:38.3]} 30... a5 {[%clk
0:01:06.4]} 31. b3 {[%clk 0:01:37.5]} 31... Rcb6 {[%clk 0:01:01.9]} 32. Nc4
{[%clk 0:01:36.7]} 32... Nd5 {[%clk 0:00:52.2]} 33. Rxd5 {[%clk 0:01:24.5]} 1-0

[Event "*** Titled Tuesday Blitz"]
[Site "Chess.com"]
[Date "2020.05.05"]
[Round "3"]
[White "StephenDedalus83"]
[Black "SARGISMV"]
[Result "0-1"]
[WhiteElo "2679"]
[BlackElo "2441"]
[TimeControl "180+1"]
[EndTime "10:27:29 PDT"]
[Termination "SARGISMV won by resignation"]

1. e4 {[%clk 0:03:00.9]} 1... e6 {[%clk 0:02:59.6]} 2. d4 {[%clk 0:03:00.1]}
2... d5 {[%clk 0:03:00.1]} 3. Nc3 {[%clk 0:03:00.6]} 3... Bb4 {[%clk 0:02:59.5]}
4. e5 {[%clk 0:03:00.9]} 4... c5 {[%clk 0:03:00.1]} 5. a3 {[%clk 0:03:01.4]}
5... Bxc3+ {[%clk 0:03:00.7]} 6. bxc3 {[%clk 0:03:02.1]} 6... Ne7 {[%clk
0:03:01.3]} 7. Qg4 {[%clk 0:03:02]} 7... O-O {[%clk 0:03:01.8]} 8. Bd3 {[%clk
0:03:01.7]} 8... Nbc6 {[%clk 0:03:00.6]} 9. Qh5 {[%clk 0:03:01.4]} 9... Ng6
{[%clk 0:03:01.1]} 10. Nf3 {[%clk 0:03:01.3]} 10... Qc7 {[%clk 0:03:00.3]} 11.
Be3 {[%clk 0:03:00.7]} 11... c4 {[%clk 0:03:00.7]} 12. Bxg6 {[%clk 0:03:00.5]}
12... fxg6 {[%clk 0:03:01.6]} 13. Qg4 {[%clk 0:03:00.5]} 13... Qf7 {[%clk
0:02:57.9]} 14. Ng5 {[%clk 0:02:59.5]} 14... Qe8 {[%clk 0:02:58]} 15. h4 {[%clk
0:02:58.7]} 15... b5 {[%clk 0:02:57.6]} 16. Nh3 {[%clk 0:02:47.9]} 16... Bd7
{[%clk 0:02:47.6]} 17. Nf4 {[%clk 0:02:47.5]} 17... Qf7 {[%clk 0:02:37.3]} 18.
Kd2 {[%clk 0:02:34.7]} 18... Ne7 {[%clk 0:02:12.1]} 19. Qh3 {[%clk 0:02:30.9]}
19... h6 {[%clk 0:02:05.9]} 20. g4 {[%clk 0:02:28.1]} 20... a5 {[%clk 0:02:06]}
21. h5 {[%clk 0:02:17.1]} 21... g5 {[%clk 0:02:05.8]} 22. Ne2 {[%clk 0:02:17.1]}
22... Qf3 {[%clk 0:02:05.1]} 23. Qxf3 {[%clk 0:02:13.1]} 23... Rxf3 {[%clk
0:02:05]} 24. Ng1 {[%clk 0:02:12.7]} 24... Rf7 {[%clk 0:01:52.4]} 25. Rh3 {[%clk
0:02:08.7]} 25... Raf8 {[%clk 0:01:49.5]} 26. Ke2 {[%clk 0:02:00.5]} 26... Nc6
{[%clk 0:01:43.8]} 27. Rb1 {[%clk 0:02:00.3]} 27... Rb8 {[%clk 0:01:38.6]} 28.
Kd2 {[%clk 0:01:59.8]} 28... Be8 {[%clk 0:01:37.3]} 29. Ne2 {[%clk 0:01:58.4]}
29... b4 {[%clk 0:01:32.8]} 30. axb4 {[%clk 0:01:57.6]} 30... axb4 {[%clk
0:01:33.7]} 31. cxb4 {[%clk 0:01:57.2]} 31... Rxb4 {[%clk 0:01:30.9]} 32. Rxb4
{[%clk 0:01:56.3]} 32... Nxb4 {[%clk 0:01:31.8]} 33. f4 {[%clk 0:01:56.3]} 33...
Ra7 {[%clk 0:01:00.9]} 34. Kc3 {[%clk 0:01:48.7]} 34... Na2+ {[%clk 0:00:57.1]}
35. Kb2 {[%clk 0:01:48.2]} 35... c3+ {[%clk 0:00:57]} 36. Nxc3 {[%clk
0:01:37.8]} 36... Nxc3 {[%clk 0:00:52.5]} 37. Kxc3 {[%clk 0:01:38.3]} 37... gxf4
{[%clk 0:00:52.7]} 38. Bxf4 {[%clk 0:01:37.8]} 38... Ra3+ {[%clk 0:00:51.8]} 0-1

[Event "*** Titled Tuesday Blitz"]
[Site "Chess.com"]
[Date "2020.05.05"]
[Round "3"]
[White "Baby_Legs"]
[Black "Sjakkerntobi"]
[Result "1/2-1/2"]
[WhiteElo "2677"]
[BlackElo "2250"]
[TimeControl "180+1"]
[EndTime "10:27:37 PDT"]
[Termination "Game drawn by repetition"]

1. d4 {[%clk 0:03:00.9]} 1... Nf6 {[%clk 0:02:55.4]} 2. c4 {[%clk 0:03:00.6]}
2... e6 {[%clk 0:02:55.7]} 3. Nc3 {[%clk 0:03:00.7]} 3... d5 {[%clk 0:02:56.1]}
4. cxd5 {[%clk 0:03:00]} 4... exd5 {[%clk 0:02:56.4]} 5. Bg5 {[%clk 0:03:00]}
5... Be7 {[%clk 0:02:52.2]} 6. e3 {[%clk 0:03:00.1]} 6... c6 {[%clk 0:02:49.4]}
7. Bd3 {[%clk 0:03:00.1]} 7... O-O {[%clk 0:02:48.7]} 8. Qc2 {[%clk 0:02:59.6]}
8... h6 {[%clk 0:02:48.9]} 9. Bh4 {[%clk 0:02:54.3]} 9... Nbd7 {[%clk
0:02:48.4]} 10. Nf3 {[%clk 0:02:51.9]} 10... Re8 {[%clk 0:02:48.1]} 11. O-O-O
{[%clk 0:02:46.6]} 11... c5 {[%clk 0:02:38]} 12. dxc5 {[%clk 0:02:41.1]} 12...
Nxc5 {[%clk 0:02:38.9]} 13. Kb1 {[%clk 0:02:34.1]} 13... Be6 {[%clk 0:02:37.3]}
14. Nd4 {[%clk 0:02:31.9]} 14... Nxd3 {[%clk 0:02:29.2]} 15. Qxd3 {[%clk
0:02:30.8]} 15... a6 {[%clk 0:02:29.5]} 16. f3 {[%clk 0:02:25.8]} 16... Rc8
{[%clk 0:02:20.2]} 17. g4 {[%clk 0:02:22.2]} 17... b5 {[%clk 0:02:19.6]} 18. Bg3
{[%clk 0:02:16.8]} 18... b4 {[%clk 0:02:13]} 19. Nce2 {[%clk 0:02:15.3]} 19...
Qa5 {[%clk 0:02:03.2]} 20. h4 {[%clk 0:02:06.9]} 20... Nd7 {[%clk 0:02:02.8]}
21. Nf4 {[%clk 0:01:53.1]} 21... Nc5 {[%clk 0:01:59.7]} 22. Qd2 {[%clk
0:01:52.2]} 22... Bf6 {[%clk 0:01:51]} 23. Nfxe6 {[%clk 0:01:27.8]} 23... fxe6
{[%clk 0:01:43.4]} 24. g5 {[%clk 0:01:27.8]} 24... Bxd4 {[%clk 0:01:35.9]} 25.
exd4 {[%clk 0:01:24.6]} 25... Na4 {[%clk 0:01:31.7]} 26. gxh6 {[%clk 0:01:11.5]}
26... Nc3+ {[%clk 0:01:31]} 27. bxc3 {[%clk 0:01:11.1]} 27... bxc3 {[%clk
0:01:31.9]} 28. Qc2 {[%clk 0:01:11]} 28... Rb8+ {[%clk 0:01:30.9]} 29. Bxb8
{[%clk 0:01:10.3]} 29... Rxb8+ {[%clk 0:01:30.3]} 30. Ka1 {[%clk 0:01:07.9]}
30... Rb2 {[%clk 0:01:29.8]} 31. Qxb2 {[%clk 0:01:03.1]} 31... cxb2+ {[%clk
0:01:30.7]} 32. Kxb2 {[%clk 0:01:03.9]} 32... Qb4+ {[%clk 0:01:31.4]} 33. Kc2
{[%clk 0:01:03]} 33... Qc4+ {[%clk 0:01:30.4]} 34. Kb1 {[%clk 0:00:59.5]} 34...
Qb4+ {[%clk 0:01:30.2]} 35. Ka1 {[%clk 0:00:52.7]} 35... Qc3+ {[%clk 0:01:29.7]}
36. Kb1 {[%clk 0:00:53.1]} 36... Qb4+ {[%clk 0:01:29.9]} 37. Kc2 {[%clk
0:00:53.2]} 37... Qc4+ {[%clk 0:01:30.3]} 38. Kb2 {[%clk 0:00:48.8]} 38... Qb4+
{[%clk 0:01:29.4]} 39. Kc2 {[%clk 0:00:48.9]} 1/2-1/2

[Event "*** Titled Tuesday Blitz"]
[Site "Chess.com"]
[Date "2020.05.05"]
[Round "3"]
[White "peixe64"]
[Black "emperor87"]
[Result "0-1"]
[WhiteElo "2232"]
[BlackElo "2578"]
[TimeControl "180+1"]
[EndTime "10:27:39 PDT"]
[Termination "emperor87 won by resignation"]

1. d4 {[%clk 0:03:00.9]} 1... Nf6 {[%clk 0:02:59.2]} 2. c4 {[%clk 0:03:01.1]}
2... g6 {[%clk 0:02:59.4]} 3. Nc3 {[%clk 0:03:01]} 3... Bg7 {[%clk 0:03:00.1]}
4. e4 {[%clk 0:03:01.1]} 4... O-O {[%clk 0:03:00.7]} 5. h3 {[%clk 0:03:01.2]}
5... d6 {[%clk 0:03:01.1]} 6. Be3 {[%clk 0:03:00.5]} 6... e5 {[%clk 0:03:01.1]}
7. d5 {[%clk 0:03:00.7]} 7... c6 {[%clk 0:03:01.5]} 8. Nf3 {[%clk 0:02:56.4]}
8... a6 {[%clk 0:03:00.8]} 9. a4 {[%clk 0:02:52.2]} 9... a5 {[%clk 0:03:00]} 10.
Be2 {[%clk 0:02:51.1]} 10... Na6 {[%clk 0:03:00]} 11. g4 {[%clk 0:02:47.7]}
11... cxd5 {[%clk 0:02:49.3]} 12. cxd5 {[%clk 0:02:47.4]} 12... Nd7 {[%clk
0:02:49.3]} 13. Rg1 {[%clk 0:02:45.9]} 13... Ndc5 {[%clk 0:02:49.2]} 14. Nd2
{[%clk 0:02:39.9]} 14... Kh8 {[%clk 0:02:47.9]} 15. Nc4 {[%clk 0:02:34.1]} 15...
f5 {[%clk 0:02:46.2]} 16. gxf5 {[%clk 0:02:34]} 16... gxf5 {[%clk 0:02:45.9]}
17. exf5 {[%clk 0:02:28.2]} 17... Bxf5 {[%clk 0:02:44.7]} 18. Rc1 {[%clk
0:02:03.2]} 18... Rc8 {[%clk 0:02:39.8]} 19. Nb5 {[%clk 0:02:00.7]} 19... Nb4
{[%clk 0:02:19.2]} 20. Rc3 {[%clk 0:01:29.3]} 20... Ne4 {[%clk 0:02:06.7]} 21.
Rc1 {[%clk 0:01:29]} 21... Qh4 {[%clk 0:01:52.4]} 22. Bg4 {[%clk 0:01:27.6]}
22... Bxg4 {[%clk 0:01:35.5]} 23. Rxg4 {[%clk 0:01:27]} 23... Qxh3 {[%clk
0:01:35.3]} 24. Rg1 {[%clk 0:01:07.9]} 24... Nxf2 {[%clk 0:01:27.5]} 25. Bxf2
{[%clk 0:00:59.5]} 25... Nd3+ {[%clk 0:01:25.3]} 26. Qxd3 {[%clk 0:00:54.5]}
26... Qxd3 {[%clk 0:01:23.5]} 27. Rg3 {[%clk 0:00:53.8]} 27... Qe4+ {[%clk
0:01:17.1]} 28. Re3 {[%clk 0:00:53.3]} 28... Qh1+ {[%clk 0:01:11.8]} 29. Kd2
{[%clk 0:00:53.2]} 29... Rxf2+ {[%clk 0:01:08.8]} 0-1

[Event "*** Titled Tuesday Blitz"]
[Site "Chess.com"]
[Date "2020.05.05"]
[Round "3"]
[White "awesomevishesh"]
[Black "Morshynska"]
[Result "1-0"]
[WhiteElo "2477"]
[BlackElo "2145"]
[TimeControl "180+1"]
[EndTime "10:27:44 PDT"]
[Termination "awesomevishesh won by checkmate"]

1. d4 {[%clk 0:03:00.9]} 1... d5 {[%clk 0:02:59.2]} 2. c4 {[%clk 0:03:00.3]}
2... e6 {[%clk 0:02:57.7]} 3. Nf3 {[%clk 0:03:00]} 3... Nf6 {[%clk 0:02:57.4]}
4. g3 {[%clk 0:02:59.5]} 4... dxc4 {[%clk 0:02:49.6]} 5. Bg2 {[%clk 0:02:58.3]}
5... c6 {[%clk 0:02:44.5]} 6. Ne5 {[%clk 0:02:49]} 6... Bb4+ {[%clk 0:02:24.5]}
7. Bd2 {[%clk 0:02:47.7]} 7... Qxd4 {[%clk 0:01:54.3]} 8. Bxb4 {[%clk
0:02:46.3]} 8... Qxe5 {[%clk 0:01:53.8]} 9. Na3 {[%clk 0:02:45.2]} 9... b5
{[%clk 0:01:23.4]} 10. Bd6 {[%clk 0:02:23.3]} 10... Qxb2 {[%clk 0:01:16.5]} 11.
O-O {[%clk 0:02:03.4]} 11... Nd5 {[%clk 0:00:44.8]} 12. e4 {[%clk 0:01:56]}
12... Nb4 {[%clk 0:00:23.7]} 13. Rb1 {[%clk 0:01:49.8]} 13... Qxa3 {[%clk
0:00:23.2]} 14. Bxb4 {[%clk 0:01:17.7]} 14... Qd3 {[%clk 0:00:22.7]} 15. Qg4
{[%clk 0:01:17.4]} 15... g6 {[%clk 0:00:16.6]} 16. Rfd1 {[%clk 0:01:13.8]} 16...
Qc2 {[%clk 0:00:15.9]} 17. Qg5 {[%clk 0:01:08.8]} 17... Nd7 {[%clk 0:00:13.5]}
18. Qe7# {[%clk 0:01:08.2]} 1-0